Cogmind - Beta 16 @@@ ROGUE MODE // 2025.11.25 @ 21:19:25 Player: MolePlayingNice Result: Self-destructed Performance ------------- Evolutions (3) 1500 Regions Visited (11) 2200 Robots Destroyed (127) 635 Value Destroyed (3416) 3416 Prototype IDs (6) 120 Alien Tech Used (0) 0 Bonus (235) 235 TOTAL SCORE: 8106 Bonus ------- Follower Combat Kills 133 Met Imprinter 300 Friendly Fire -198 Cogmind --------- Core Integrity 530/700 Matter 218/300 Energy 448/495 System Corruption 9% Temperature Cool (0) Movement Rolling (145) Ox3 Location -7/Zion Parts ------- > --- POWER (2) -------- Heavy Ion Engine Neutrino Core > --- PROPULSION (2) --- Armored Huge Wheel > --- UTILITY (7) ------ Improved Heat Sink Advanced Heat Sink High-capacity Storage Unit Hardened Heavy Armor Plating Makeshift Kinetic Plating > --- WEAPON (2) ------- Gatling Laser Gatling Laser > --- INVENTORY (20) --- Light Treads Light Treads Armored Treads Compact Matter Pod (150) Compact Matter Pod (150) Hardened Light Armor Plating Hardened Heavy Armor Plating Phasing AFG Improved EM Shotgun Gatling Laser EM Pulse Cannon Improved EM Pulse Cannon Plasma Cannon Advanced Assault Cannon Shock Bomb Launcher Shock Bomb Launcher Missile Launcher Axe CR-A16's Pointy Stick Peak State ------------ > --- POWER ------------ Heavy Ion Engine Neutrino Core > --- PROPULSION ------- Armored Huge Wheel > --- UTILITY ---------- Improved Heat Sink Advanced Heat Sink High-capacity Storage Unit Improved Signal Interpreter Hardened Heavy Armor Plating Phasing AFG > --- WEAPON ----------- Gatling Laser Axe > --- INVENTORY -------- Light Treads Light Treads Armored Treads Compact Matter Pod Compact Matter Pod Hardened Heavy Armor Plating Improved Light Armor Plating Improved EM Shotgun Improved EM Shotgun Gatling Laser EM Pulse Cannon Improved EM Pulse Cannon Heavy Particle Cannon Plasma Cannon Advanced Assault Cannon Shock Bomb Launcher Advanced EMP Blaster Missile Launcher Makeshift Sword [Rating: 63] Favorites ----------- Power Heavy Ion Engine Engine Heavy Ion Engine Power Core Neutrino Core Propulsion Light Treads Treads Light Treads Leg Aluminum Leg Wheel Armored Huge Wheel Utility High-capacity Storage Unit Device Advanced Heat Sink Storage High-capacity Storage Unit Processor Improved Signal Interpreter Hackware Hacking Suite Protection Hardened Heavy Armor Plating Weapon Gatling Laser Energy Gun Gatling Laser Energy Cannon Improved EM Pulse Cannon Ballistic Cannon Light Cannon Launcher Shock Bomb Launcher Special Weapon Mining Laser Slashing Weapon Axe Build | -11 -10 -10 -9 -9 -9 -8 -8 -7 -7 -7 -7 ------- Run | Yrd Mat Min Mat Min Exi Min Mat Fac Low Low Zio Slots Evolved 6 | . . . 2 . . . 2 2 . . . Power 1 | . . . . . . . . 1 . . . Propulsion . | . . . . . . . . . . . . Utility 5 | . . . 2 . . . 2 1 . . . Weapon . | . . . . . . . . . . . . Parts Attached 85 | . 7 8 6 . . 7 35 8 1 5 8 Power 7 | . . 1 . . . 1 3 1 . 1 . Engine 6 | . . 1 . . . 1 3 1 . . . Core 1 | . . . . . . . . . . 1 . Reactor . | . . . . . . . . . . . . Propulsion 18 | . 3 2 1 . . 2 6 1 . 3 . Treads 14 | . . 2 1 . . 2 6 1 . 2 . Leg 3 | . 3 . . . . . . . . . . Wheel 1 | . . . . . . . . . . 1 . Hover . | . . . . . . . . . . . . Flight . | . . . . . . . . . . . . Utility 33 | . 3 1 4 . . 1 15 3 1 1 4 Device 13 | . 1 1 1 . . 1 6 1 . 1 1 Storage 3 | . 2 . 1 . . . . . . . . Processor 4 | . . . 1 . . . 3 . . . . Hackware 1 | . . . . . . . . 1 . . . Protection 12 | . . . 1 . . . 6 1 1 . 3 Artifact . | . . . . . . . . . . . . Weapon 27 | . 1 4 1 . . 3 11 3 . . 4 Energy Gun 17 | . 1 3 1 . . 2 7 2 . . 1 Energy Cannon 2 | . . . . . . . . 1 . . 1 Ballistic Gun . | . . . . . . . . . . . . Ballistic Cannon 2 | . . . . . . 1 . . . . 1 Launcher 3 | . . . . . . . 2 . . . 1 Special Weapon 1 | . . 1 . . . . . . . . . Impact Weapon . | . . . . . . . . . . . . Slashing Weapon 2 | . . . . . . . 2 . . . . Piercing Weapon . | . . . . . . . . . . . . Special Melee Weapon . | . . . . . . . . . . . . Unidentified Prototypes 6 | . . . . . . . 5 . . . 1 Parts Lost 15 | . . 1 . . . 6 4 1 . . 3 Power 2 | . . . . . . 2 . . . . . Propulsion 2 | . . . . . . 2 . . . . . Utility 7 | . . . . . . . 4 1 . . 2 Weapon 4 | . . 1 . . . 2 . . . . 1 Highest Loss Streak 4 | . . 1 . . . 4 1 1 . . 1 To Critical Strikes . | . . . . . . . . . . . . Average Backups 17 | 6 11 14 15 19 19 18 19 18 18 18 18 Power . | 1 1 1 2 2 2 1 1 . . . . Propulsion 3 | 4 6 5 3 3 3 2 3 3 3 3 3 Utility 4 | . . 2 2 5 5 6 6 5 4 4 4 Weapon 8 | 1 2 4 7 8 8 7 8 10 10 10 11 Tool/Special . | . . . . . . . . . . . . Unused Backups 46 | . 7 10 . . . . 17 2 . . 10 Power 6 | . . 3 . . . . 3 . . . . Propulsion 11 | . 4 4 . . . . 1 . . . 2 Utility 11 | . 2 . . . . . 6 1 . . 2 Weapon 17 | . 1 3 . . . . 6 1 . . 6 Tool/Special 1 | . . . . . . . 1 . . . . Average Slot Usage (%) 93 | . 98 99 92 100 100 97 99 99 84 83 83 Engine 9 | . 14 14 11 11 11 8 9 15 7 6 7 Core 1 | . . . . . . . . . . 1 7 Treads 12 | . . 24 22 22 22 22 18 14 15 13 . Leg 3 | . 28 3 . . . . . . . . . Wheel 1 | . . . . . . . . . . . 7 Device 19 | . 12 14 18 22 22 22 25 14 15 22 18 Storage 9 | . 14 14 11 11 11 11 9 7 7 7 7 Processor 4 | . . . 1 . . . 6 15 7 7 6 Protection 8 | . . . 6 11 11 11 12 8 7 7 11 Energy Gun 16 | . 28 28 22 22 22 20 17 12 15 9 7 Slashing Weapon 1 | . . . . . . . . 1 . 5 3 Peak Build Rating 63 | 6 9 12 16 16 16 20 35 44 44 53 63 Average Rating 31 | 6 8 9 14 16 16 18 27 41 42 43 53 On Entrance 22 | 6 6 9 12 16 16 16 18 34 44 42 53 Avg Prop Armor Cover (%) . | . . . . . . . . . . . . Naked Turns . | . . . . . . . . . . . . Heaviest Build 119 | 13 31 32 58 58 58 60 69 77 78 92 119 Greatest Support 56 | 20 20 40 40 40 40 40 40 40 40 56 28 Greatest Overweight (x) 4 | . 1 1 1 1 1 1 1 1 1 3 4 Average Overweight (x) 1 | . . . . 1 1 1 1 1 1 1 3 Largest Inventory Capacity 20 | 8 15 15 20 20 20 20 20 20 20 20 20 Average Capacity 18 | 8 14 15 18 20 20 20 20 20 20 20 20 Most Carried 20 | 6 15 15 19 19 19 20 20 20 20 20 20 Average Carried 18 | 6 11 14 15 19 19 18 19 19 19 19 19 Final Capacity 20 | 8 15 15 20 20 20 20 20 20 20 20 20 Final Carried 20 | 6 15 15 19 19 19 20 20 20 20 20 20 Class Distribution -------------------- 66% | Scavenger-Mutant 33% | Mutant Dominant Class ---------------- Scavenger-Mutant | -10/Materials Mutant | -10/Mines Scavenger-Mutant | -9/Materials Scavenger-Mutant | -9/Mines Scavenger-Mutant | -9/Exiles Scavenger-Mutant | -8/Mines Scavenger-Mutant | -8/Materials Mutant | -7/Factory Scavenger-Mutant | -7/Lower Caves Scavenger-Mutant | -7/Lower Caves Mutant | -7/Zion Resources | -11 -10 -10 -9 -9 -9 -8 -8 -7 -7 -7 -7 ----------- Run | Yrd Mat Min Mat Min Exi Min Mat Fac Low Low Zio Matter Collected 2632 | 200 85 108 60 . . 253 857 133 25 106 805 Remotely . | . . . . . . . . . . . . Salvage Created 4637 | . 312 171 241 . . 264 1221 400 . 168 1860 Parts 215 | . 12 11 13 . . 7 53 15 . 5 99 Haulers Intercepted 6 | . 1 . 1 . . . 4 . . . . Recyclers Shooed 3 | . 1 . . . . 1 1 . . . . Parts Field Recycled . | . . . . . . . . . . . . Retrieved Matter . | . . . . . . . . . . . . Parts Self-Destructed 5 | . . . . . . . . . . 5 . Prevented . | . . . . . . . . . . . . Parts Restored . | . . . . . . . . . . . . Kills | -11 -10 -10 -9 -9 -9 -8 -8 -7 -7 -7 -7 ------- Run | Yrd Mat Min Mat Min Exi Min Mat Fac Low Low Zio Combat Hostiles Destroyed 75 | . 6 9 4 . . 6 24 7 . 6 13 Guns 51 | . 6 8 4 . . 4 18 5 . 3 3 Cannons 3 | . . . . . . 2 . 1 . . . AOE 11 | . . . . . . . 6 . . 3 2 Classes Destroyed 15 | . 2 3 3 . . 1 3 . . . 3 Worker 3 | . . 1 . . . . 2 . . . . Builder 1 | . . . . . . . 1 . . . . Hauler 6 | . 1 . 1 . . . 4 . . . . Recycler 2 | . . . 1 . . . 1 . . . . Watcher 3 | . . . 1 . . . 1 1 . . . Swarmer 18 | . . 6 2 . . . 6 . . 4 . Grunt 30 | . 6 2 1 . . 5 10 5 . 1 . Brawler 1 | . . . . . . 1 . . . . . Duelist 1 | . . . . . . . 1 . . . . Sentry 10 | . . . 1 . . . 6 2 . 1 . Hunter 1 | . . . . . . . 1 . . . . Zionite 38 | . . . . . . . . . . . 38 Tinkerer 2 | . . . . . . . . . . . 2 Assembled 1 | . . 1 . . . . . . . . . Thug 1 | . . . . . . . . . . . 1 Savage 3 | . . . . . . . . . . . 3 Butcher 3 | . . . . . . . . . . . 3 Mutant 6 | . . . . . . . . . . . 6 Best Kill Streak 19 | . 2 3 2 . . 3 5 3 . 3 19 Combat Bots Only 7 | . 2 3 1 . . 3 4 3 . 3 7 Max Kills in Single Turn 2 | . 1 1 1 . . 1 2 1 . 2 2 Gunslinging . | . . . . . . . . . . . . Exploded 2 | . . . . . . . 2 . . 2 1 Melee . | . . . . . . . . . . . . Uniques/NPCs Destroyed . | . . . . . . . . . . . . Combat | -11 -10 -10 -9 -9 -9 -8 -8 -7 -7 -7 -7 -------- Run | Yrd Mat Min Mat Min Exi Min Mat Fac Low Low Zio Hostile Shots Fired 488 | . 40 28 45 . . 59 102 64 . 52 98 Missed 154 | . 12 7 10 . . 8 29 23 . 20 45 Hits 334 | . 28 21 35 . . 51 73 41 . 32 53 Melee 3 | . . 1 . . . . . . . . 2 Projectile 331 | . 28 20 35 . . 51 73 41 . 32 51 AOE 2 | . . . . . . . . . . . 2 Critical Strikes 10 | . . . 2 . . 2 2 2 . 1 1 Damage Taken 4500 | . 348 202 326 . . 839 953 502 . 366 964 Core 508 | . 68 30 28 . . 63 149 123 . 15 32 Absorbed by Shields 180 | . . . . . . . 180 . . . . Ignored by Resistances 18 | . . . . . . . . . . . 18 Regen/Repaired (Parts) 673 | . . . . . . . . 138 . . 535 Core Remaining (%) 77 | 100 . 60 . . . 77 72 . . . . Volleys Fired 310 | . 37 15 19 . . 26 88 23 . 9 93 Largest 2 | . 2 2 2 . . 2 2 2 . 2 2 Hottest 160 | . 115 121 121 . . 130 130 160 . 160 160 Shots Fired 575 | . 64 30 35 . . 52 168 46 . 16 164 Gun 448 | . 64 30 35 . . 50 164 42 . 14 49 Cannon 7 | . . . . . . 2 . 4 . . 1 Launcher 120 | . . . . . . . 4 . . 2 114 Special . | . . . . . . . . . . . . Kinetic 3 | . . . . . . 2 . . . . 1 Thermal 452 | . 64 30 35 . . 50 164 46 . 14 49 Explosive 7 | . . . . . . . 4 . . 2 1 Electromagnetic 113 | . . . . . . . . . . . 113 Robot Hit Streak 46 | . 10 4 7 . . 18 46 18 . 8 9 Robot Miss Streak 5 | . 4 2 3 . . 4 3 5 . 3 5 Penetration Max . | . . . . . . . . . . . . Secondary Targets 8 | . . . . . . 1 1 1 . 1 4 Max Gunslinging Chain 1 | . . . . . . 1 1 1 . 1 1 Shots Hit Robots 384 | . 42 16 22 . . 44 129 35 . 13 83 Core Hits 268 | . 17 9 9 . . 28 101 22 . 11 71 Critical Kills . | . . . . . . . . . . . . Critical Parts Destroyed . | . . . . . . . . . . . . Critical Strikes 19 | . 3 1 2 . . 2 10 1 . . . Burn 19 | . 3 1 2 . . 2 10 1 . . . Melee Attacks 9 | . . . . . . . 3 3 . 1 2 Impact . | . . . . . . . . . . . . Slashing 9 | . . . . . . . 3 3 . 1 2 Piercing . | . . . . . . . . . . . . Sneak Attacks 1 | . . . . . . . . . . . 1 Combat Hostiles . | . . . . . . . . . . . . Follow-up Attacks . | . . . . . . . . . . . . Damage Inflicted 9068 | . 592 241 388 . . 659 2760 690 . 528 3210 Guns 5437 | . 555 225 386 . . 626 2075 589 . 290 691 Cannons 106 | . . . . . . 33 . 73 . . . Explosions 3309 | . . . . . . . 618 . . 238 2453 Melee 66 | . . . . . . . . . . . 66 Ramming 150 | . 37 16 2 . . . 67 28 . . . Kinetic 33 | . . . . . . 33 . . . . . Thermal 5556 | . 555 225 386 . . 626 2075 662 . 290 737 Explosive 856 | . . . . . . . 618 . . 238 . Electromagnetic 2407 | . . . . . . . . . . . 2407 Impact . | . . . . . . . . . . . . Slashing 66 | . . . . . . . . . . . 66 Piercing . | . . . . . . . . . . . . Highest Corruption 9 | . 5 5 . . . . 4 . . . 9 Average Corruption 4 | . 3 5 . . . . 3 . . . 5 Corruption Purged . | . . . . . . . . . . . . Corruption Blocked . | . . . . . . . . . . . . Effects 91 | . 7 17 . . . . 40 . . . 27 Message Errors 20 | . 1 5 . . . . 8 . . . 6 Matter Fused 23 | . 3 2 . . . . 13 . . . 5 Heat Flow Errors 10 | . 1 2 . . . . 5 . . . 2 Energy Discharges 12 | . 1 2 . . . . 6 . . . 3 Parts Rejected 2 | . . 1 . . . . . . . . 1 Data Loss (minor) 14 | . 1 4 . . . . 3 . . . 6 Data Loss (major) 1 | . . . . . . . . . . . 1 Misfires 1 | . . . . . . . 1 . . . . Alerts 4 | . . 1 . . . . 2 . . . 1 Weapon Failures 4 | . . . . . . . 2 . . . 2 Overload Shots . | . . . . . . . . . . . . Overflow Damage 61 | . . . . . . . 27 6 . . 28 Projectiles . | . . . . . . . . . . . . Explosions 29 | . . . . . . . 27 . . . 2 Melee 32 | . . . . . . . . 6 . . 26 Knockbacks 2 | . . . . . . . 2 . . . . Impact 2 | . . . . . . . 2 . . . . Kinetic . | . . . . . . . . . . . . Secondary . | . . . . . . . . . . . . Self-Inflicted Damage 292 | . . . . . . . 21 . . . 271 Shots 16 | . . . . . . . . . . . 16 Rammed 16 | . . 3 . . . . 11 2 . . . Targets Rammed 25 | . 7 4 1 . . . 11 2 . . . Kicked 7 | . 7 . . . . . . . . . . Crushed 2 | . . 1 1 . . . . . . . . Highest Temperature 284 | . 235 178 27 . . 96 243 284 . 271 253 Average Temperature 66 | . 84 46 11 . . 40 51 90 . 146 57 Received Heat Transfer 1668 | . 195 18 51 . . 495 412 297 . 114 86 Effects 1 | . 1 . . . . . . . . . . Interference 1 | . 1 . . . . . . . . . . Siege Activations . | . . . . . . . . . . . . Martial Activations . | . . . . . . . . . . . . Shielding Activations . | . . . . . . . . . . . . Robots Disrupted . | . . . . . . . . . . . . Combat Hostiles . | . . . . . . . . . . . . Robots Corrupted 11 | . . . . . . . . . . . 11 Combat Hostiles 8 | . . . . . . . . . . . 8 Parts Fried 22 | . . . . . . . . . . . 22 Impact Corruptions 1 | . . . . . . . . 1 . . . Robots Melted 2 | . . 1 . . . . . 1 . . . Combat Hostiles 2 | . . 1 . . . . . 1 . . . Parts Melted 27 | . 2 3 . . . 2 14 2 . 1 3 Heat Transferred 13703 | . 1681 630 1110 . . 1456 5014 1537 . 650 1625 Parts Sabotaged . | . . . . . . . . . . . . Parts Stolen . | . . . . . . . . . . . . Parts Stripped . | . . . . . . . . . . . . Power Chain Reactions 13 | . . . . . . . . . . . 13 Alert | -11 -10 -10 -9 -9 -9 -8 -8 -7 -7 -7 -7 ------- Run | Yrd Mat Min Mat Min Exi Min Mat Fac Low Low Zio Maximum Alert Level 1 | . . . 1 . . . 1 . . . . Low Security (%) 88 | 100 100 100 88 100 . 100 75 100 . . . Level 1 11 | . . . 11 . . . 24 . . . . Level 2 . | . . . . . . . . . . . . Level 3 . | . . . . . . . . . . . . Level 4 . | . . . . . . . . . . . . Level 5 . | . . . . . . . . . . . . High Security . | . . . . . . . . . . . . Max Security . | . . . . . . . . . . . . Peak Influence 357 | . 40 105 216 49 . 50 357 151 . . . Initial 151 | . . . 19 49 . . 3 151 . . . Average 87 | . 7 29 141 39 . 13 137 103 . . . Influence Increases 2058 | . 181 274 314 . . 140 805 214 . 130 . Destroy 0b10 Robot/C 1400 | . 120 200 220 . . 120 480 140 . 120 . Destroy 0b10 Robot/NC 80 | . 5 5 20 . . . 45 5 . . . Destroy Leader 300 | . 32 30 46 . . 20 130 32 . 10 . Allied During Kill 29 | . . 9 20 . . . . . . . . Successful Hack 57 | . 8 . 8 . . . 7 34 . . . Disable Machine 30 | . . . . . . . 30 . . . . Destroy Structure 42 | . 1 . . . . . 38 3 . . . Lose Combat Pursuer 120 | . 15 30 . . . . 75 . . . . Influence Decreases 2058 | . 181 223 238 98 29 130 480 448 101 130 . Entered New Map 368 | . . . 32 78 29 . 7 184 38 . . Time Decay 1595 | . 181 198 206 20 . 110 433 254 63 130 . Lost Part 80 | . . 10 . . . 20 40 10 . . . Lost Ally 15 | . . 15 . . . . . . . . . Squads Dispatched 4 | . . . 1 . . . 2 1 . . . Investigation 2 | . . . 1 . . . . 1 . . . Extermination . | . . . . . . . . . . . . Reinforcement 2 | . . . . . . . 2 . . . . Assault . | . . . . . . . . . . . . Garrison . | . . . . . . . . . . . . Intercept . | . . . . . . . . . . . . Searches Triggered . | . . . . . . . . . . . . Construction Impeded 1 | . . . . . . . 1 . . . . Haulers Reinforced . | . . . . . . . . . . . . Active Scanning Responses . | . . . . . . . . . . . . Cargo Convoy Interrupts . | . . . . . . . . . . . . Stealth | -11 -10 -10 -9 -9 -9 -8 -8 -7 -7 -7 -7 --------- Run | Yrd Mat Min Mat Min Exi Min Mat Fac Low Low Zio Distress Signals 6 | . . . 1 . . . 3 2 . . . Communications Jammed . | . . . . . . . . . . . . Distress Signals . | . . . . . . . . . . . . Times Spotted 152 | . 12 13 14 . . 6 42 9 . 6 50 Peak Tracking Total 10 | . 4 3 5 . . 3 5 3 . 3 10 Tactical Retreats 12 | . 1 2 . . . . 3 . . . 6 Traps | -11 -10 -10 -9 -9 -9 -8 -8 -7 -7 -7 -7 ------- Run | Yrd Mat Min Mat Min Exi Min Mat Fac Low Low Zio Traps Triggered 7 | . 4 . . . . . 3 . . . . Indirectly . | . . . . . . . . . . . . Trap Hack Attempts . | . . . . . . . . . . . . Triggered . | . . . . . . . . . . . . Disarmed . | . . . . . . . . . . . . Reprogrammed . | . . . . . . . . . . . . Reused . | . . . . . . . . . . . . Traps Extracted . | . . . . . . . . . . . . Installed . | . . . . . . . . . . . . Triggered . | . . . . . . . . . . . . Machines | -11 -10 -10 -9 -9 -9 -8 -8 -7 -7 -7 -7 ---------- Run | Yrd Mat Min Mat Min Exi Min Mat Fac Low Low Zio Machines Disabled 4 | . . . . . . . 2 . . . 2 Max in Single Turn 1 | . . . . . . . 1 . . . 1 Machines Repaired . | . . . . . . . . . . . . Machines Dismantled . | . . . . . . . . . . . . Machines Sabotaged . | . . . . . . . . . . . . Overloaded Fab Kills . | . . . . . . . . . . . . Hacking | -11 -10 -10 -9 -9 -9 -8 -8 -7 -7 -7 -7 --------- Run | Yrd Mat Min Mat Min Exi Min Mat Fac Low Low Zio Machines Accessed 16 | . 3 . 3 . 1 . 7 2 . . . Terminals 13 | . 3 . 3 . . . 6 1 . . . Fabricators . | . . . . . . . . . . . . Repair Stations 1 | . . . . . . . . 1 . . . Recycling Units . | . . . . . . . . . . . . Scanalyzers 1 | . . . . . . . 1 . . . . Garrison Access . | . . . . . . . . . . . . Total Hacks 37 | . 7 . 6 . 1 . 18 5 . . . Successful 11 | . 1 . 1 . 1 . 5 3 . . . Failed 25 | . 6 . 5 . . . 12 2 . . . Catastrophic 5 | . 2 . 1 . . . 2 . . . . Database Lockouts 1 | . . . . . . . 1 . . . . Manual 21 | . 5 . 5 . . . 11 . . . . Terminals 29 | . 7 . 6 . . . 13 3 . . . Fabricators . | . . . . . . . . . . . . Repair Stations 2 | . . . . . . . . 2 . . . Recycling Units . | . . . . . . . . . . . . Scanalyzers 5 | . . . . . . . 5 . . . . Garrison Access . | . . . . . . . . . . . . Terminal Hacks 6 | . 1 . 1 . 1 . 2 1 . . . Record 1 | . . . . . 1 . . . . . . Branch Access Points 2 | . . . 1 . . . . 1 . . . Alert Level 1 | . . . . . . . 1 . . . . Hauler Manifests 1 | . . . . . . . 1 . . . . Registered Components 1 | . 1 . . . . . . . . . . Fabricator Hacks . | . . . . . . . . . . . . Repair Station Hacks 2 | . . . . . . . . 2 . . . Scan Component 1 | . . . . . . . . 1 . . . Repair 1 | . . . . . . . . 1 . . . Recycling Unit Hacks . | . . . . . . . . . . . . Scanalyzer 3 | . . . . . . . 3 . . . . Retrieve Study 3 | . . . . . . . 3 . . . . Garrison Access Hacks . | . . . . . . . . . . . . Unauthorized Hacks . | . . . . . . . . . . . . Terminals . | . . . . . . . . . . . . Fabricators . | . . . . . . . . . . . . Repair Stations . | . . . . . . . . . . . . Recycling Units . | . . . . . . . . . . . . Scanalyzers . | . . . . . . . . . . . . Garrison Access . | . . . . . . . . . . . . Data Cores Recovered . | . . . . . . . . . . . . Used . | . . . . . . . . . . . . Hacking Detections 14 | . 3 . 3 . . . 6 2 . . . Full Trace Events 1 | . . . . . . . . 1 . . . Feedback Events . | . . . . . . . . . . . . Feedback Blocked . | . . . . . . . . . . . . Robot Schematics Acquired 4 | . . . . . . . . . . . 4 Robots Built . | . . . . . . . . . . . . Authchips . | . . . . . . . . . . . . Time . | . . . . . . . . . . . . Total Robot Build Rating . | . . . . . . . . . . . . Part Schematics Acquired 15 | . . . . . . . . . . . 15 Parts Built . | . . . . . . . . . . . . Authchips . | . . . . . . . . . . . . Time . | . . . . . . . . . . . . Total Part Build Rating . | . . . . . . . . . . . . Part Studies Acquired 3 | . . . . . . . 3 . . . . Parts Repaired 1 | . . . . . . . . 1 . . . Time 13 | . . . . . . . . 13 . . . Parts Recycled . | . . . . . . . . . . . . Recycled Matter . | . . . . . . . . . . . . Retrieved Matter . | . . . . . . . . . . . . Retrieved Components . | . . . . . . . . . . . . Parts Scanalyzed . | . . . . . . . . . . . . Part Schematics Acquired . | . . . . . . . . . . . . Parts Damaged . | . . . . . . . . . . . . Bothacking | -11 -10 -10 -9 -9 -9 -8 -8 -7 -7 -7 -7 ------------ Run | Yrd Mat Min Mat Min Exi Min Mat Fac Low Low Zio Used RIF Installer . | . . . . . . . . . . . . Robots Hacked . | . . . . . . . . . . . . Non-combat . | . . . . . . . . . . . . Combat . | . . . . . . . . . . . . Robot Hacks Applied . | . . . . . . . . . . . . Relay Couplers Released . | . . . . . . . . . . . . Fabnet Peak Effective % . | . . . . . . . . . . . . Robots Rewired . | . . . . . . . . . . . . Allies Hacked . | . . . . . . . . . . . . Hacks Repelled . | . . . . . . . . . . . . Allies | -11 -10 -10 -9 -9 -9 -8 -8 -7 -7 -7 -7 -------- Run | Yrd Mat Min Mat Min Exi Min Mat Fac Low Low Zio Total Allies 6 | . . 3 . . . . . . . . 3 Largest Group 3 | . . 3 2 1 1 . . . . . 3 Highest-Rated Group 71 | . . 40 24 16 16 . . . . . 71 Highest-Rated Ally 31 | . . 16 16 16 16 . . . . . 31 Total Orders . | . . . . . . . . . . . . Ally Attacks 57 | . . 25 30 . . 2 . . . . . Total Damage 497 | . . 173 310 . . 14 . . . . . Kills 11 | . . 2 9 . . . . . . . . Allies Corrupted . | . . . . . . . . . . . . Allies Melted 1 | . . . . . . 1 . . . . . Intel | -11 -10 -10 -9 -9 -9 -8 -8 -7 -7 -7 -7 ------- Run | Yrd Mat Min Mat Min Exi Min Mat Fac Low Low Zio Active Infowar (turns) 4260 | . . . 42 . . . 1275 426 435 566 1516 Optics 42 | . . . 42 . . . . . . . . Sensors 3423 | . . . . . . . 480 426 435 566 1516 Terrain 246 | . . . . . . . 246 . . . . Seismic 549 | . . . . . . . 549 . . . . Robot Analysis Total . | . . . . . . . . . . . . Derelict Logs Recovered 5 | . . 1 . . . . . . 2 1 1 Drone Launches . | . . . . . . . . . . . . Drone Recoveries . | . . . . . . . . . . . . Exploration | -11 -10 -10 -9 -9 -9 -8 -8 -7 -7 -7 -7 ------------- Run | Yrd Mat Min Mat Min Exi Min Mat Fac Low Low Zio Turns Passed 9668 | 5 963 702 429 56 744 355 2318 551 435 575 2535 Spaces Moved 4383 | 5 454 346 167 24 311 111 907 209 215 271 1363 Core . | . . . . . . . . . . . . Treads 2506 | . . 334 167 24 311 111 907 209 215 228 . Legs 471 | 5 454 12 . . . . . . . . . Wheels 1406 | . . . . . . . . . . 43 1363 Hover . | . . . . . . . . . . . . Flight . | . . . . . . . . . . . . Fastest Speed 120 | 120 120 160 160 240 240 240 200 200 200 130 145 Average Speed 182 | 120 179 161 212 240 240 240 202 200 200 194 145 Slowest Speed 240 | 120 190 190 240 240 240 240 240 200 200 240 160 Overloaded Moves . | . . . . . . . . . . . . Propulsion Burnouts . | . . . . . . . . . . . . Robots Hopped . | . . . . . . . . . . . . Potential Cave-ins 3 | . . . . . . . 3 . . . . Cave-ins Triggered . | . . . . . . . . . . . . Exploration Rate (%) 43 | 2 80 54 21 9 69 42 63 6 50 39 86 Regions Visited 11 Branch Regions 7 Pre-discovered Areas 3 | . . . . . . . . . . . 3 Known Exits Taken 5 | . . . 1 . . . 1 1 1 1 . Unknown Exits Taken 6 | 1 1 1 . 1 1 1 . . . . . Scrap Searched 8 | . . 1 . . . 1 . . 1 2 3 Spaces Dug 39 | . . . . . . . 25 2 . 11 1 Terrain Destroyed 85 | . . . . . . . 51 2 . 16 16 Melee 6 | . . . . . . . 3 2 . 1 . Projectile . | . . . . . . . . . . . . AOE 79 | . . . . . . . 48 . . 15 16 Terrain Rammed 1 | . . . . . . . 1 . . . . Walls Destroyed . | . . . . . . . . . . . . Machines Disabled 1 | . . . . . . . 1 . . . . Actions | -11 -10 -10 -9 -9 -9 -8 -8 -7 -7 -7 -7 --------- Run | Yrd Mat Min Mat Min Exi Min Mat Fac Low Low Zio Total 5445 | 4 537 464 204 23 310 148 1214 287 223 297 1734 Wait 409 | . 12 63 5 . . . 75 21 2 . 231 Move 4372 | 4 453 345 166 23 310 110 906 208 214 270 1363 Hop . | . . . . . . . . . . . . Pick Up 86 | . 13 14 4 . . 5 32 5 2 2 9 Fast Attach 38 | . 1 1 4 . . . 21 4 . 3 4 Attach 24 | . 1 3 . . . 5 6 2 1 1 5 Detach 5 | . . . 1 . . . 2 . 2 . . Swap 66 | . 5 5 2 . . 2 19 10 . 6 17 Drop 100 | . 8 14 2 . . . 50 9 2 5 10 Fire 310 | . 37 15 19 . . 26 88 23 . 9 93 Melee 9 | . . . . . . . 3 3 . 1 2 Ram 1 | . . . . . . . 1 . . . . Kick 7 | . 7 . . . . . . . . . . Crush 18 | . . 4 1 . . . 11 2 . . . Escape Stasis . | . . . . . . . . . . . . Rewire . | . . . . . . . . . . . . Trap . | . . . . . . . . . . . . Miscellaneous . | . . . . . . . . . . . . Route ------- -11/Scrapyard -10/Materials (discovered 5 exits: *Mat x3 / [*Min] / [*Sub]) -10/Mines -9/Materials -9/Mines -9/Exiles -8/Mines -8/Materials -7/Factory (discovered 4 exits: Sto x2 / *Low x2) -7/Lower Caves -7/Lower Caves -7/Zion (discovered 2 exits: Dee / [*Pro]) History --------- Turn | Location | Event 1 | -11/Scrapyard | Discovered new exit (range 3) 6 | -11/Scrapyard | Entered Materials 127 | -10/Materials | Discovered new exit (range 16) 289 | -10/Materials | Discovered new exit (range 10) 398 | -10/Materials | Discovered new exit (range 11) 553 | -10/Materials | Build established: Scavenger-Mutant 590 | -10/Materials | Discovered new exit (range 10) 939 | -10/Materials | Discovered new exit (range 16) 969 | -10/Materials | Entered Mines 1109 | -10/Mines | Learned Materials garrison access intel 1173 | -10/Mines | Build established: Mutant 1192 | -10/Mines | Assisted by bots powering up and referring to "LRC-V3" 1193 | -10/Mines | Assembled infested the area 1198 | -10/Mines | Assisted by a Guerilla fighting off Assembled 1503 | -10/Mines | A weapon hastily lodged in a ceiling crevice suddenly fell to the ground 1576 | -10/Mines | Discovered new exit (range 5) 1671 | -10/Mines | Entered Materials 1671 | -9/Materials | Accompanied by 2 allies 1671 | -9/Materials | Evolved 2 slots: Utility x2 1872 | -9/Materials | Identified exit to Mines 2053 | -9/Materials | Build established: Scavenger-Mutant 2100 | -9/Materials | Entered Mines 2100 | -9/Mines | Accompanied by 1 ally 2102 | -9/Mines | Met a Derelict bent on vengeance 2141 | -9/Mines | Deemed a non-threat by the Exiles lab entrance 2144 | -9/Mines | Discovered new exit (range 5) 2156 | -9/Mines | Entered Exiles 2156 | -9/Exiles | Found Exiles lab abandoned 2156 | -9/Exiles | Accompanied by 1 ally 2867 | -9/Exiles | Discovered new exit (range 14) 2900 | -9/Exiles | Entered Mines 2900 | -8/Mines | Accompanied by 1 ally 2957 | -8/Mines | Lost 4 parts (1p2n1w) 3222 | -8/Mines | Discovered new exit (range 15) 3255 | -8/Mines | Entered Materials 3255 | -8/Materials | Evolved 2 slots: Utility x2 3256 | -8/Materials | Loaded intel: 1 garrison access location 3396 | -8/Materials | Central database locked down 5506 | -8/Materials | Build established: Mutant 5553 | -8/Materials | Discovered new exit (range 7) 5571 | -8/Materials | Identified exit to Factory 5573 | -8/Materials | Entered Factory 5573 | -7/Factory | Evolved 2 slots: Power x1, Utility x1 5647 | -7/Factory | Identified exit to Storage 5647 | -7/Factory | Identified exit to Lower Caves 5865 | -7/Factory | Repaired Lgt. Treads+ 6124 | -7/Factory | Entered Lower Caves 6228 | -7/Lower Caves | Build established: Scavenger-Mutant 6331 | -7/Lower Caves | Learned Factory stockpile data 6431 | -7/Lower Caves | Learned 12 Factory zone layouts 6529 | -7/Lower Caves | Discovered new exit (range 16) 6557 | -7/Lower Caves | Identified exit to Lower Caves 6559 | -7/Lower Caves | Entered another Lower Caves area 6561 | -7/Lower Caves | Attracted the attention of an 0b10 checkpoint 6851 | -7/Lower Caves | Learned Factory emergency access door positions 7001 | -7/Lower Caves | Discovered new exit (range 13) 7133 | -7/Lower Caves | Identified exit to Zion 7134 | -7/Lower Caves | Entered Zion 7190 | -7/Zion | Discovered new exit (range 8) 7291 | -7/Zion | Visited the Megawrench Repair Shop 7360 | -7/Zion | Build established: Mutant 7450 | -7/Zion | Learned location of Recycling (-7) 7465 | -7/Zion | Identified exit to Deep Caves 7542 | -7/Zion | Learned location of Warlord (-4) 7574 | -7/Zion | Gained Derelict followers 7774 | -7/Zion | Found Prototype Device 7774 | -7/Zion | Identified Phasing AFG 7863 | -7/Zion | Found CR-A16's Pointy Stick 8418 | -7/Zion | Megawrench repaired 10 parts 8535 | -7/Zion | Build established: Scavenger-Mutant 8603 | -7/Zion | Met Imprinter 8613 | -7/Zion | Attacked by Zionites 8666 | -7/Zion | Destroyed 7 combat bots 9669 | -7/Zion | Self-destructed Last Messages --------------- 09403_ S4-I1U(M) destroyed. 09403_ Switching to secondary target: 2P-HJG(z). 09404_ 2P-HJG(z) heat short circuits Mak. Leg. 09406_ Mak. Leg melted. 09406_ 2P-HJG(z) destroyed. 09408_ System corrupted: Component data lost. 09410_ HE-A3M(z) destroyed. 09422_ Acquired 23 matter. 09423_ Acquired 48 matter. 09433_ Acquired 19 matter. 09471_ System corrupted: Matter fused (-9). 09487_ System corrupted: Component data lost. 09515_ System corrupted: Energy discharge (-158). 09532_ System corrupted: Substantial component data lost. 09591_ System corrupted: Heat flow error (+293). 09609_ System corrupted: Matter fused (-5). 09630_ System corrupted: Heat flow error (+129). 09667_ System corrupted: Energy discharge (-99). Map ----- +----------------------------------------------------+ | ??????????????????????????????????????????????? | | ??????????????????????????????????????????????? | | ??????????????????????????????????????????????? | | ??????????????????????????????????????????????? | | ??????????????????????????????????????????????? | | ??????????????????????????????????????????????? | | ??????????????????????????????????????????????? | | ??????????????????????????????????????????????? | | ??????????????????????????????????????????????? | | ??????????????????????????????????????????????? | | ??????????????????????????????????????????????? | | ??????????????????????????????????????????????? | | ??????????????????????????????????????????????? | | ?????????????????????????????????????????????## | | ????????????????????????????????????????????## | | ????????????????????????????????????????##### | | ????????????????????????????????????????#"#"" | | ????????????????????????###????????????##""" | | ??????????????????????###"#????????????#""" | | ??????????????????????# #???????????##"" | | ??????????????????????# ###???###???# " | | ??????????????????????" ##### ###?# | | ??????????????????????# # # ### | | ?????????????????????## % | | ?????????????????????" [ | | ?????????????????????"@ | | ?????????????????????# * | | ?????????????>??????# "# ## [ | | ???????????????????# # ###"## = # | | ???????????????????##### #?## | | ???????????????????????###?## % | | ???????????????????????????# =*= | | ???????????????????????????# / =%= | | ???????????????????????????# //* | | ????????????????????######## = | | ??????????????????###""# "" = | | ??????????????????#"" "# # / * | | ??????????????????#"" # # ! | | ??????????????????# # | | ??????????????????#""]" #"# | | ???????????????????# "# #" | | ???????????????????####### | | ?????????????????????????## | | ??????????????????????????# | | ?????????????????????????## | | ?????????????????????????# = | | ?????????????????????????## | | ??????????????????????????# # # | | ??????????????????????????#### | | ?????????????????????????????### # | +----------------------------------------------------+ Best States ------------- Heat Dissipation 67 Energy Generation 28 Energy Capacity 495 Matter Stores 300 Matter Capacity 300 Sight Range 18 Robot Scan Range 15 Terrain Scan Range 16 Terrain Scan Density 10 Armor Coverage 1300 Resistance: KI 10 Resistance: EM 15 Evasion (%) 55 Targeting Accuracy 8 Core Analysis 6 Recoil Reduction 2 Offensive Hacking 10 Item Schematics ----------------- Gauss Cannon | -7/Zion | Archive Focal Shield | -7/Zion | Archive Lightning Gun | -7/Zion | Archive Adv. Melee Analysis Suite | -7/Zion | Archive Imp. Field Recycling Unit | -7/Zion | Archive Adv. Assault Cannon | -7/Zion | Archive IFF Parser | -7/Zion | Archive Adv. Plasma Cannon | -7/Zion | Archive Adv. Heat Sink | -7/Zion | Archive Imp. Transmission Jammer | -7/Zion | Archive Arm. Huge Wheel | -7/Zion | Archive Angular Momentum Engine | -7/Zion | Archive Gatling Laser | -7/Zion | Archive Lgt. Fission Core | -7/Zion | Archive Hvy. Rocket Launcher | -7/Zion | Archive Robot Schematics ------------------ L-31 Rogue | -7/Zion | Archive S-27 Virus | -7/Zion | Archive T-07 Excavator | -7/Zion | Archive H-88 Terminator | -7/Zion | Archive Fabricated ------------ Nothing Repaired ---------- Lgt. Treads | 1% | -7/Factory Studied --------- Lgt. Treads | -8/Materials | Hacked Spread Laser | -8/Materials | Hacked Imp. Ion Engine | -8/Materials | Hacked Alien Tech Used ----------------- None Achievements -------------- None Challenges ------------ None Game ------ Seed ArcsightShadeCasing Manual? 0 Play Time 00:51:16 Cumulative 416.7 hours Start 2025.11.25 @ 20:28:40 End 2025.11.25 @ 21:19:25 Sessions 1 Manual Loads 0 Difficulty Rogue Special Mode None Game No. 135 Rogue 135 Adventurer 0 Explorer 0 Win Type - Total 13 Types 4/0/6/0/1/0/1/0/0/1 Lore% 80 Gallery% 86 Achievement% 72 Wizard Run 0 Options --------- Layout 1 ASCII 0 Keyboard 0 Movement Arrows Keybinds 0 Fullscreen 1 Font 24/Smallcaps Map View 50x35 Zoom Use 0% Tactical HUD 1 Map Filters NONE Filters NONE Steam 1 RUN: c75f366d-00f5-47a2-b425-918a776c3301